bitfinex/quotes_ETHUSD_20241009
["timestamp","ask_amount","ask_price","bid_price","bid_amount"]
[1728480255537,4.13584,2432.0,2431.9,0.02399862]
[1728480255942,7.92849357,2432.0,2431.9,0.02399862]
[1728480256104,9.13250993,2432.0,2431.9,0.02399862]
[1728480256839,5.33985636,2432.0,2431.9,0.02399862]
[1728480256999,4.13584,2432.0,2431.9,0.02399862]
[1728480257202,7.92849357,2432.0,2431.9,0.02399862]
[1728480259865,8.69619357,2432.0,2431.9,0.02399862]
[1728480261186,7.92849357,2432.0,2431.9,0.02399862]
[1728480265689,3.81665357,2432.0,2431.9,0.02399862]
[1728480265903,7.92849357,2432.0,2431.9,0.02399862]
[1728480267157,3.81665357,2432.0,2431.9,0.02399862]
[1728480267358,0.024,2432.0,2431.9,0.02399862]
[1728480267892,4.13584,2432.0,2431.9,0.02399862]
[1728480268296,7.92849357,2432.0,2431.9,0.02399862]
[1728480270299,3.81665357,2432.0,2431.9,0.02399862]
[1728480270682,7.92849357,2432.0,2431.9,0.02399862]
[1728480271883,3.81665357,2432.0,2431.9,0.02399862]
[1728480272087,0.024,2432.0,2431.9,0.02399862]
[1728480272595,4.13584,2432.0,2431.9,0.02399862]
[1728480273099,0.024,2432.0,2431.9,5.51310862]
[1728480273301,0.024,2432.0,2431.9,9.61941948]
[1728480273504,0.016,2432.0,2431.9,9.61941948]
[1728480273674,0.008,2432.0,2431.9,9.61941948]
[1728480273874,0.016,2432.2,2431.9,9.61941948]
[1728480273875,0.02,2432.2,2432.1,9.66167]
[1728480274074,0.02,2432.2,2432.1,12.33414795]
[1728480274075,0.012,2432.2,2432.1,12.33414795]
[1728480274306,0.012,2432.2,2432.1,12.33814657]
[1728480274307,0.008,2432.2,2432.1,12.33814657]
[1728480274481,0.008,2432.2,2432.1,12.34614657]
[1728480274806,0.016,2432.3,2432.1,11.53104657]
[1728480274807,0.024,2432.3,2432.1,11.53104657]
[1728480275014,0.024,2432.3,2432.2,8.57482256]
[1728480275306,0.016,2432.3,2432.2,10.86296567]
[1728480275477,0.008,2432.3,2432.2,10.86696567]
[1728480275689,0.008,2432.3,2432.2,10.87496567]
[1728480275874,0.024,2432.7,2432.5,9.11095]
[1728480276078,0.024,2432.7,2432.3,4.11122]
[1728480276079,0.024,2432.7,2432.6,0.55]
[1728480276292,4.13465,2432.7,2432.6,0.55799862]
[1728480276500,4.13465,2432.7,2432.6,0.01599862]
[1728480276700,4.13465,2432.7,2432.6,0.01999862]
[1728480277006,4.13465,2432.7,2432.6,0.02399862]
[1728480277407,5.41538336,2432.7,2432.6,0.02399862]
[1728480279300,9.20803693,2432.7,2432.6,0.02399862]
[1728480284709,10.04063693,2432.7,2432.6,0.02399862]
[1728480284918,13.04063693,2432.7,2432.6,0.02399862]
[1728480286383,8.09738693,2432.7,2431.6,0.7846]
[1728480286588,0.008,2431.7,2431.6,0.7846]
[1728480286788,0.02,2431.7,2431.6,0.7846]
[1728480287007,0.024,2431.7,2431.6,0.7846]
[1728480287629,0.024,2431.7,2431.6,1.3346]
[1728480289487,4.13634,2431.7,2431.4,1.334]
[1728480289671,0.004,2431.5,2431.4,1.334]
[1728480290368,0.024,2431.5,2431.4,1.334]
[1728480291123,0.024,2431.5,2431.4,5.44685]
[1728480292255,0.024,2431.5,2431.4,5.45485]
[1728480292479,0.024,2431.5,2431.4,5.46285]
[1728480292766,0.024,2431.5,2431.4,7.00587225]
[1728480292970,0.024,2431.5,2431.4,9.92361962]
[1728480293132,0.024,2431.5,2431.4,9.92761962]
[1728480293334,0.024,2431.5,2431.4,10.23493005]
[1728480293536,0.024,2431.5,2431.4,45.23493005]
[1728480294147,0.024,2431.5,2431.4,10.23493005]
[1728480295266,0.024,2431.5,2431.4,10.23482069]
[1728480296374,0.02,2431.5,2431.4,10.23482069]
[1728480296663,0.004,2431.5,2431.4,12.38633176]
[1728480296868,0.024,2431.9,2431.8,10.46368]
[1728480297079,0.024,2431.9,2431.8,14.92527662]
[1728480297241,0.024,2431.9,2431.8,14.93727662]
[1728480297429,0.024,2431.9,2431.8,14.94527662]
[1728480300237,0.024,2431.9,2431.8,10.83309662]
[1728480300581,0.024,2431.9,2431.8,13.48767862]
[1728480301074,0.012,2431.9,2431.8,13.7948228]
[1728480301293,0.024,2432.3,2432.2,5.0]
[1728480301589,0.008,2432.3,2432.2,13.4399]
[1728480301738,0.008,2432.3,2432.2,15.203053]
[1728480301938,0.008,2432.3,2432.2,15.21505162]
[1728480302171,0.004,2432.3,2432.2,15.21905162]
[1728480302383,0.024,2432.7,2432.4,4.11115]
[1728480302538,0.024,2432.7,2432.6,0.004]
[1728480302734,0.024,2432.7,2432.6,0.01199862]
[1728480303049,0.024,2432.7,2432.6,0.01999862]
[1728480303254,0.024,2432.7,2432.6,0.02399862]
[1728480304678,7.92730357,2432.7,2432.6,0.02399862]
[1728480304988,9.13109193,2432.7,2432.6,0.02399862]
[1728480305669,9.93439193,2432.7,2432.6,0.02399862]
[1728480306243,0.8273,2432.7,2432.6,0.02399862]
[1728480306470,0.024,2432.7,2432.6,0.02399862]
[1728480306686,7.92730357,2432.7,2432.6,0.02399862]
[1728480306995,8.71090357,2432.7,2432.6,0.02399862]
[1728480310382,11.71090357,2432.7,2432.6,0.02399862]
[1728480310587,13.29304393,2432.7,2432.6,0.02399862]
[1728480311382,12.50944393,2432.7,2431.4,0.8144]
[1728480311647,0.012,2431.5,2431.4,4.92725]
[1728480311876,0.02,2431.5,2431.4,4.92725]
[1728480312083,0.024,2431.5,2431.4,4.92725]
[1728480312791,0.024,2431.5,2431.4,5.47725]
[1728480313886,0.024,2431.5,2431.4,6.936261]
[1728480314189,0.024,2431.5,2431.4,10.01850834]
[1728480314343,0.024,2431.5,2431.4,10.24382343]
[1728480315602,0.024,2431.5,2431.4,8.47725]
[1728480316375,0.024,2431.5,2431.4,8.48125]
[1728480316689,0.024,2431.5,2431.4,8.48925]
[1728480317612,0.024,2431.5,2431.4,8.49724862]
[1728480318071,0.024,2431.5,2431.4,8.80888706]
[1728480318313,0.024,2431.5,2431.4,10.81622768]
[1728480318500,0.024,2431.5,2431.4,10.50858924]
[1728480319002,0.024,2431.5,2431.4,8.50124862]
[1728480321160,0.024,2431.5,2431.4,0.57399862]
[1728480321574,0.024,2431.5,2431.4,4.68684862]
[1728480322874,0.024,2431.5,2431.4,5.52769604]
[1728480323078,0.024,2431.5,2431.4,5.44544862]
[1728480323314,0.024,2431.5,2431.4,6.90128848]
[1728480324112,0.024,2431.5,2431.4,1.33259862]
[1728480325501,0.024,2431.5,2431.4,5.52770145]
[1728480325858,0.024,2431.5,2431.4,12.32035502]
[1728480326024,0.016,2431.5,2431.4,49.69879442]
[1728480326183,0.016,2431.5,2431.4,51.64838464]
[1728480326184,0.004,2431.5,2431.4,51.64838464]
[1728480326379,0.024,2431.8,2431.7,9.92624]
[1728480326618,0.024,2431.8,2431.7,13.47624]
[1728480326823,0.024,2431.8,2431.7,13.79183441]
[1728480327119,0.024,2431.8,2431.7,13.80383303]
[1728480327328,0.016,2431.8,2431.7,16.19399347]
[1728480327501,0.012,2431.8,2431.7,16.19399347]
[1728480327698,0.004,2431.8,2431.7,16.19399347]
[1728480327921,0.02,2432.2,2431.7,16.19399347]
[1728480327922,0.016,2432.2,2432.1,13.45927]
[1728480328098,0.008,2432.2,2432.1,13.45927]
[1728480328322,0.024,2432.3,2432.2,4.6615]
[1728480328627,0.024,2432.3,2432.2,5.50012275]
[1728480328929,0.024,2432.3,2432.2,8.4259]
[1728480329133,0.024,2432.3,2432.2,8.4379]
[1728480329320,0.024,2432.3,2432.2,8.44189862]
[1728480329515,0.024,2432.3,2432.2,10.73923019]
[1728480330128,0.024,2432.3,2432.2,11.04671989]
[1728480330299,0.024,2432.3,2432.2,10.73923019]
[1728480337667,0.02,2432.3,2432.2,10.73923019]
[1728480337874,0.012,2432.3,2432.2,10.73923019]
[1728480338156,0.012,2432.7,2432.6,9.93942]
[1728480338157,0.024,2432.7,2432.6,9.93942]
[1728480338366,0.024,2432.7,2432.6,8.558]
[1728480338570,0.024,2432.7,2432.6,8.566]
[1728480338571,0.8137,2432.7,2432.6,8.566]
[1728480338723,0.8137,2432.7,2432.6,8.57399862]
[1728480338923,0.8137,2432.7,2432.6,5.57399862]
[1728480341781,0.8137,2432.7,2432.6,9.68481862]
[1728480341989,0.024,2432.7,2432.6,9.68481862]
[1728480342279,0.024,2432.7,2432.6,5.57399862]
[1728480342770,0.024,2432.7,2432.6,9.68481862]
[1728480345191,0.024,2432.7,2432.6,11.06439248]
[1728480345338,0.024,2432.7,2432.6,14.84179248]
[1728480346370,0.024,2432.7,2432.6,12.68481862]
[1728480346559,0.024,2432.7,2432.6,8.57399862]
[1728480346757,0.024,2432.7,2432.6,12.68481862]
[1728480354979,0.024,2432.7,2432.6,8.57399862]
[1728480355307,0.024,2432.7,2432.6,5.57399862]
[1728480356370,0.024,2432.7,2432.6,9.68481862]
[1728480363309,0.024,2432.7,2432.6,14.89039948]
[1728480363610,0.012,2432.7,2432.6,14.89039948]
[1728480363815,0.024,2433.0,2432.9,9.11032]
[1728480364120,0.024,2433.0,2432.9,13.49432]
[1728480364414,0.024,2433.0,2432.9,15.44224754]
[1728480364726,0.024,2433.0,2432.9,17.20077677]
[1728480365015,0.02,2433.0,2432.9,17.20077677]
[1728480365228,0.012,2433.0,2432.9,17.20077677]
[1728480365390,0.004,2433.0,2432.9,17.20077677]
[1728480365578,0.024,2433.4,2433.3,4.10964]
[1728480365784,0.024,2433.4,2433.3,4.65964]
[1728480366003,0.024,2433.4,2433.3,6.04457962]
[1728480366704,0.024,2433.4,2433.3,6.05257962]
[1728480366883,0.024,2433.4,2433.3,6.06057962]
[1728480369516,0.024,2433.4,2433.3,6.87587962]
[1728480369715,0.024,2433.4,2433.3,6.95805986]
[1728480369922,0.024,2433.4,2433.3,6.87587962]
[1728480370383,0.024,2433.4,2433.3,6.95805992]
[1728480370830,0.024,2433.4,2433.3,9.87587962]
[1728480373079,0.02,2433.4,2433.3,9.87587962]
[1728480373324,0.016,2433.4,2433.3,9.87587962]
[1728480373621,0.024,2433.7,2433.6,9.10913]
[1728480373915,0.024,2433.7,2433.6,12.66712862]
[1728480374117,0.024,2433.7,2433.6,12.67912862]
[1728480374322,0.024,2433.7,2433.6,0.57399862]
[1728480374616,1.35116,2433.7,2433.6,0.02399862]
[1728480374821,0.8548,2433.7,2433.6,0.02399862]
[1728480375620,0.024,2433.7,2433.6,4.13312862]
[1728480375824,0.024,2433.7,2433.6,12.7653046]
[1728480376026,0.024,2433.7,2433.6,14.45306908]
[1728480380630,0.024,2433.7,2433.6,15.24136908]
[1728480380784,0.012,2433.7,2433.6,15.24136908]
[1728480380981,0.004,2433.7,2433.6,15.24136908]
[1728480381221,0.016,2433.8,2433.7,7.65896]
[1728480381427,0.004,2433.8,2433.7,10.00491291]
[1728480381625,0.004,2433.8,2433.7,10.00891291]
[1728480381787,0.004,2433.8,2433.7,10.01691291]
[1728480381987,0.004,2433.8,2433.7,10.02491153]
[1728480382203,0.024,2434.1,2433.7,10.02891153]
[1728480382404,0.7967,2434.1,2434.0,0.00799862]
[1728480382637,0.7967,2434.1,2434.0,0.01599862]
[1728480382836,4.90099,2434.1,2434.0,0.02399862]
[1728480383044,4.88899,2434.1,2434.0,0.02399862]
[1728480383234,4.88499,2434.1,2434.0,0.02399862]
[1728480383714,5.784304,2434.1,2434.0,0.02399862]
[1728480389615,4.88499,2434.1,2434.0,0.02399862]
[1728480395597,7.88499,2434.1,2434.0,0.02399862]
[1728480400184,4.11027,2433.0,2432.6,8.7758]
[1728480400382,0.008,2432.8,2432.6,16.99742]
[1728480400588,0.016,2432.8,2432.6,14.586352]
[1728480400883,0.024,2432.8,2432.6,14.586352]
[1728480401081,0.024,2432.8,2432.7,4.11065]
[1728480401792,0.024,2432.8,2432.7,0.55]
[1728480405259,0.024,2432.8,2432.7,0.55399862]
[1728480405459,0.024,2432.8,2432.7,0.56199862]
[1728480406088,0.024,2432.8,2432.7,0.56599862]
[1728480406262,0.024,2432.8,2432.7,0.56999862]
[1728480406676,0.024,2432.8,2432.7,4.68064862]
[1728480406876,0.024,2432.8,2432.7,4.68464862]
[1728480407183,0.024,2432.8,2432.7,0.57399862]
[1728480407862,0.024,2432.8,2432.7,6.44178748]
[1728480408052,0.024,2432.8,2432.7,7.3396998]
[1728480408749,0.024,2432.8,2432.7,7.25748748]
[1728480409381,0.024,2432.8,2432.7,5.50034862]
[1728480417080,0.024,2432.8,2432.7,0.57399862]
[1728480417410,4.94628,2432.8,2432.7,0.02399862]
[1728480421978,0.024,2432.8,2432.7,0.57399862]
[1728480422610,0.024,2432.8,2432.7,4.68464862]
[1728480423020,0.024,2432.8,2432.7,0.02399862]
[1728480424400,0.024,2432.8,2432.7,4.13464862]
[1728480424581,0.024,2432.8,2432.7,4.68464862]
[1728480425672,0.024,2432.8,2432.7,0.57399862]
[1728480426101,0.024,2432.8,2432.7,4.68464862]
[1728480427735,0.024,2432.8,2432.7,11.50220293]
[1728480428038,0.024,2432.8,2432.7,11.41999548]
[1728480429144,0.024,2432.8,2432.7,7.30934548]
[1728480429296,0.024,2432.8,2432.7,6.35009862]
[1728480429623,0.024,2432.8,2432.7,10.46074862]
[1728480429939,0.024,2432.8,2432.7,6.35009862]
[1728480430100,0.024,2432.8,2432.7,5.57399862]
[1728480430437,0.024,2432.8,2432.7,0.02399862]
[1728480433609,4.13448,2432.8,2432.7,0.02399862]
[1728480433820,0.024,2432.8,2432.7,0.02399862]
[1728480436516,4.13448,2432.8,2432.7,0.02399862]
[1728480438119,0.024,2432.8,2432.7,0.02399862]
[1728480438576,0.024,2432.8,2432.7,6.36309862]
[1728480438705,0.024,2432.8,2432.7,11.66655082]
[1728480438911,0.024,2432.8,2432.7,11.58434676]
[1728480443114,0.024,2432.8,2432.7,6.36309862]
[1728480443726,0.024,2432.8,2432.7,5.57399862]
[1728480445125,4.13448,2432.8,2432.7,0.57399862]
[1728480445331,4.96388,2432.8,2432.7,0.02399862]
[1728480445661,6.25117057,2432.8,2432.7,0.02399862]
[1728480447267,9.25117057,2432.8,2432.7,0.02399862]
[1728480451135,9.45641349,2432.8,2432.7,0.02399862]
[1728480452852,6.25117057,2432.8,2432.7,0.02399862]
[1728480459238,9.25117057,2432.8,2432.7,0.02399862]
[1728480460476,4.1125,2431.7,2431.6,0.7597]
[1728480460632,4.1165,2431.7,2431.3,5.0]
[1728480460832,4.1285,2431.7,2431.4,0.7507]
[1728480461027,4.11252,2431.6,2431.4,0.7507]
[1728480461271,4.11268,2431.5,2431.4,0.7507]
[1728480461511,4.11252,2431.6,2431.4,0.7507]
[1728480461710,4.11268,2431.5,2431.4,0.7507]
[1728480462077,4.11252,2431.6,2431.4,0.7507]
[1728480462404,4.11268,2431.5,2431.4,0.7507]
[1728480462599,4.11668,2431.5,2431.4,1.3007]
[1728480462911,4.12068,2431.5,2431.4,1.3007]
[1728480463081,4.12068,2431.5,2431.2,0.7507]
[1728480463082,4.11285,2431.4,2431.2,0.7507]
[1728480463282,4.11319,2431.2,2431.1,0.38333971]
[1728480463688,4.93399,2431.2,2431.1,0.38333971]
[1728480463869,6.63064357,2431.2,2431.1,0.38333971]
[1728480464071,6.63864357,2431.2,2431.1,0.38333971]
[1728480464301,6.64264357,2431.2,2431.1,0.38333971]
[1728480464671,6.64264357,2431.2,2431.1,0.38733971]
[1728480464672,4.12919,2431.2,2431.1,0.38733971]
[1728480464940,0.016,2431.2,2431.1,0.93733971]
[1728480466638,4.12919,2431.2,2431.1,0.93733971]
[1728480466808,4.12919,2431.2,2431.1,0.94133971]
[1728480466997,4.12919,2431.2,2431.1,0.95333833]
[1728480468051,4.12919,2431.2,2431.1,0.56999862]
[1728480468341,0.016,2431.2,2431.1,0.56999862]
[1728480468707,0.016,2431.2,2431.1,1.61355848]
[1728480469131,0.016,2431.2,2431.1,5.80917538]
[1728480469498,0.016,2431.2,2431.1,1.61355848]
[1728480470001,0.016,2431.2,2431.1,0.56999862]
[1728480472020,4.12919,2431.2,2431.1,0.56999862]
[1728480472217,0.016,2431.2,2431.1,1.38929862]
[1728480472435,0.004,2431.2,2431.1,5.5849121]
[1728480472628,0.024,2431.3,2431.2,0.55]
[1728480472823,0.024,2431.3,2431.2,0.55799862]
[1728480473029,0.024,2431.3,2431.2,0.56599862]
[1728480473230,0.024,2431.3,2431.2,0.56999862]
[1728480473951,0.024,2431.3,2431.2,5.65225682]
[1728480474135,0.024,2431.3,2431.2,11.7311644]
[1728480474355,0.024,2431.3,2431.2,11.6489062]
[1728480476664,0.024,2431.3,2431.2,7.5357162]
[1728480476972,0.024,2431.3,2431.2,1.36459862]
[1728480477282,4.13702,2431.3,2431.2,0.01999862]
[1728480480241,4.96052,2431.3,2431.2,0.01999862]
[1728480481032,11.7591957,2431.3,2431.2,0.01999862]
[1728480481376,9.92759614,2431.3,2431.2,0.01999862]
[1728480481559,6.92759614,2431.3,2431.2,0.01999862]
[1728480484052,7.13146635,2431.3,2431.2,0.01999862]
[1728480486255,6.30796635,2431.3,2431.2,0.01999862]
[1728480486474,4.13702,2431.3,2431.2,0.01999862]
[1728480490704,0.024,2431.3,2431.2,0.01999862]
[1728480491959,4.13702,2431.3,2431.2,0.01999862]
[1728480492501,0.024,2431.3,2431.2,0.01999862]
[1728480493690,4.13702,2431.3,2431.2,0.01999862]
[1728480493897,0.024,2431.3,2431.2,0.01999862]
[1728480494399,4.13702,2431.3,2431.2,0.01999862]
[1728480496603,4.962009,2431.3,2431.2,0.01999862]
[1728480501311,5.746309,2431.3,2431.2,0.01999862]
[1728480503187,4.962009,2431.3,2431.2,0.01999862]
[1728480503392,4.13702,2431.3,2431.2,0.01999862]
[1728480504931,8.7485957,2431.3,2431.2,0.01999862]
[1728480506482,4.94992,2431.3,2431.2,0.01999862]
[1728480506677,4.13702,2431.3,2431.2,0.01999862]
[1728480508098,4.13702,2431.3,2431.2,0.01999862]
[1728480508613,0.024,2431.3,2431.2,0.01999862]
[1728480508815,0.024,2431.3,2431.2,5.23135448]
[1728480509129,0.024,2431.3,2431.2,1.91656448]
[1728480511280,0.024,2431.3,2431.2,1.36839862]
[1728480511888,4.13702,2431.3,2431.2,0.01999862]
[1728480512318,7.9356957,2431.3,2431.2,0.01999862]
[1728480514686,4.13702,2431.3,2431.2,0.01999862]
[1728480514885,5.42392857,2431.3,2431.2,0.01999862]
[1728480515295,9.22260427,2431.3,2431.2,0.01999862]
[1728480515806,10.04720427,2431.3,2431.2,0.01999862]
[1728480518429,13.04720427,2431.3,2431.2,0.01999862]
[1728480518793,16.84587997,2431.3,2431.2,0.01999862]
[1728480518992,16.84587997,2431.3,2431.2,0.008]
[1728480519193,4.11353,2431.0,2430.9,0.01999862]
[1728480519418,8.7428987,2431.0,2430.9,0.01999862]
[1728480519594,8.7508987,2431.0,2430.9,0.01999862]
[1728480519916,8.7588987,2431.0,2430.9,0.01999862]
[1728480520932,9.5523987,2431.0,2430.9,0.01999862]
[1728480527228,8.7588987,2431.0,2430.9,0.01999862]
[1728480528854,4.13753,2431.0,2430.9,0.56999862]
[1728480532251,7.9362057,2431.0,2430.9,0.01999862]
[1728480532415,8.6971057,2431.0,2430.9,0.01999862]
[1728480535422,7.9362057,2431.0,2430.9,0.01999862]
[1728480535945,4.13753,2431.0,2430.9,0.01999862]
[1728480536858,0.024,2431.0,2430.9,0.56999862]
[1728480537061,0.024,2431.0,2430.9,10.96099148]
[1728480537219,0.024,2431.0,2430.9,10.49259862]
[1728480538024,0.024,2431.0,2430.9,13.49259862]
[1728480541240,0.016,2431.0,2430.9,13.49259862]
[1728480541465,0.016,2431.0,2430.9,15.64497109]
[1728480541744,0.024,2431.3,2431.2,9.11319]
[1728480542087,0.024,2431.3,2431.2,13.48569]
[1728480542383,0.024,2431.3,2431.2,13.49768862]
[1728480542892,0.024,2431.3,2431.2,9.38449862]
[1728480544362,0.024,2431.3,2431.2,0.01999862]
[1728480544971,0.024,2431.3,2431.2,0.56999862]
[1728480547641,4.13702,2431.3,2431.2,0.01999862]
[1728480547980,0.928818,2431.3,2431.2,0.01999862]
[1728480548756,0.024,2431.3,2431.2,0.01999862]
[1728480549064,0.024,2431.3,2431.2,5.49888862]
[1728480549369,0.024,2431.3,2431.2,8.58114313]
[1728480549574,0.024,2431.3,2431.2,8.49888862]
[1728480551245,0.024,2431.3,2431.2,12.29756432]
[1728480551484,0.024,2431.3,2431.2,14.43865075]
[1728480554205,0.016,2431.3,2431.2,14.43865075]
[1728480554361,0.012,2431.3,2431.2,14.43865075]
[1728480554704,0.024,2431.7,2431.6,9.88021]
[1728480554858,0.024,2431.7,2431.6,13.43420862]
[1728480555063,0.024,2431.7,2431.6,15.58076105]
[1728480555408,0.024,2431.7,2431.6,15.58476105]
[1728480559025,0.024,2431.7,2431.6,19.38343675]
[1728480559199,0.016,2431.7,2431.6,19.38343675]
[1728480559367,0.008,2431.7,2431.6,19.38343675]
[1728480559574,0.024,2432.0,2431.9,5.0]
[1728480559785,0.024,2432.0,2431.9,14.38492561]
[1728480560114,0.024,2432.0,2431.9,14.31470862]
[1728480570627,0.02,2432.0,2431.9,14.31470862]
[1728480570827,0.016,2432.0,2431.9,14.72630862]
[1728480570996,0.004,2432.0,2431.9,14.72630862]
[1728480571192,0.024,2432.5,2432.4,13.45526]
[1728480571396,0.024,2432.5,2432.4,15.215915]
[1728480571702,0.024,2432.5,2432.4,15.23191362]
[1728480572492,0.024,2432.5,2432.4,19.03058932]
[1728480573436,0.024,2432.5,2432.4,15.23191362]
[1728480577941,0.024,2432.8,2432.7,14.00279162]
[1728480578271,0.024,2432.8,2432.7,14.78029162]
[1728480579766,0.02,2432.8,2432.7,14.78029162]
[1728480579971,0.008,2432.8,2432.7,14.78029162]
[1728480580260,0.024,2433.3,2433.2,0.55]
[1728480580440,0.024,2433.3,2433.2,0.554]
[1728480580775,0.024,2433.3,2433.2,0.56999862]
[1728480582872,4.13364,2433.3,2433.2,0.56999862]
[1728480583024,8.7072157,2433.3,2433.2,0.01999862]
[1728480583229,9.98888527,2433.3,2433.2,0.01999862]
[1728480588984,6.19020957,2433.3,2433.2,0.01999862]
[1728480592352,4.90854,2433.3,2433.2,0.01999862]
[1728480602554,8.7072157,2433.3,2433.2,0.01999862]
[1728480603173,11.7072157,2433.3,2433.2,0.01999862]
[1728480603655,4.90854,2433.3,2433.2,0.01999862]
[1728480603856,0.7989,2433.3,2433.2,0.01999862]
[1728480604061,0.024,2433.3,2433.2,0.01999862]
[1728480604285,4.13364,2433.3,2433.2,0.01999862]
[1728480605005,0.024,2433.3,2433.2,0.01999862]
[1728480605183,0.024,2433.3,2433.2,0.56999862]
[1728480605384,0.024,2433.3,2433.2,5.27897648]
[1728480605600,0.024,2433.3,2433.2,1.16916648]
[1728480606100,0.024,2433.3,2433.2,0.01999862]
[1728480606258,4.13364,2433.3,2433.2,0.01999862]
[1728480606464,4.91434,2433.3,2433.2,0.01999862]
[1728480610226,0.024,2433.3,2433.2,0.01999862]
[1728480610516,0.024,2433.3,2433.2,5.46150862]
[1728480610719,0.024,2433.3,2433.2,6.00765948]
[1728480611371,0.024,2433.3,2433.2,1.35169862]
[1728480611572,0.024,2433.3,2433.2,0.01999862]
[1728480612222,4.13364,2433.3,2433.2,0.01999862]
[1728480612711,0.024,2433.3,2433.2,0.01999862]
[1728480612880,0.024,2433.3,2433.2,0.56999862]
[1728480613614,0.024,2433.3,2433.2,5.55880048]
[1728480613800,0.024,2433.3,2433.2,6.31000048]
[1728480614693,0.024,2433.3,2433.2,6.39218956]
[1728480614995,0.024,2433.3,2433.2,6.31000048]
[1728480615230,0.024,2433.3,2433.2,6.39218755]
[1728480616042,0.024,2433.3,2433.2,0.01999862]
[1728480617159,4.13364,2433.3,2433.2,0.01999862]
[1728480617340,4.93054,2433.3,2433.2,0.01999862]
[1728480618017,4.93054,2433.3,2433.2,0.01599862]
[1728480618221,4.93054,2433.3,2433.2,0.00399862]
[1728480618546,4.93054,2433.3,2432.9,0.01999862]
[1728480618547,4.91105,2433.0,2432.9,0.01999862]
[1728480618731,8.7137257,2433.0,2432.9,0.01999862]
[1728480618972,8.7257257,2433.0,2432.9,0.01999862]
[1728480619247,8.7337257,2433.0,2432.9,0.01999862]
[1728480620110,8.9355363,2433.0,2432.9,0.01999862]
[1728480620306,10.24009093,2433.0,2432.9,0.01999862]
[1728480621117,0.8249,2433.0,2432.9,0.01999862]
[1728480621323,0.024,2433.0,2432.9,0.01999862]
[1728480621911,7.9328257,2433.0,2432.9,0.01999862]
[1728480622421,8.7527257,2433.0,2432.9,0.01999862]
[1728480626953,8.7527257,2433.0,2431.9,3.08223002]
[1728480626954,4.11161,2432.2,2431.9,0.55]
[1728480627162,0.004,2432.0,2431.9,0.55]
[1728480627471,0.016,2432.0,2431.9,0.55]
[1728480627643,0.024,2432.0,2431.8,0.7641]
[1728480628145,4.13587,2432.0,2431.8,0.7641]
[1728480628354,3.7986757,2431.9,2431.6,0.7916]
[1728480628521,3.7986757,2431.9,2431.4,0.7916]
[1728480628522,7.9110357,2431.7,2431.4,0.7916]
[1728480628716,0.004,2431.5,2431.4,4.90444]
[1728480628948,0.016,2431.5,2431.4,4.90444]
[1728480629154,0.016,2431.5,2431.4,4.90844]
[1728480629327,0.02,2431.5,2431.4,0.7956]
[1728480629720,0.024,2431.5,2431.4,9.90845]
[1728480630020,0.024,2431.5,2431.4,11.31880869]
[1728480630638,0.024,2431.5,2431.4,11.86880869]
[1728480631671,0.024,2431.5,2431.4,11.87280869]
[1728480632159,0.024,2431.5,2431.4,11.87680869]
[1728480632538,0.024,2431.5,2431.4,14.87680869]
[1728480633047,0.024,2431.5,2431.4,14.88080869]
[1728480633276,0.024,2431.5,2431.4,14.88480731]
[1728480636152,0.024,2431.5,2431.4,2.77195731]
[1728480636337,0.024,2431.5,2431.4,0.81159862]
[1728480636547,0.024,2431.5,2431.4,0.01999862]
[1728480636963,4.13668,2431.5,2431.4,0.01999862]
[1728480637272,0.024,2431.5,2431.4,0.01999862]
[1728480638126,7.9353557,2431.5,2431.4,0.01999862]
[1728480638325,9.22037727,2431.5,2431.4,0.01999862]
[1728480639482,7.9353557,2431.5,2431.4,0.01999862]
[1728480640172,8.7587557,2431.5,2431.4,0.01999862]
[1728480640931,8.95970701,2431.5,2431.4,0.01999862]
[1728480643228,11.95970701,2431.5,2431.4,0.01599862]
[1728480643427,4.11302,2431.3,2431.2,0.01199862]
[1728480643629,8.7281957,2431.3,2431.2,0.01199862]
[1728480643872,8.7401957,2431.3,2431.2,0.01199862]
[1728480644044,15.5468714,2431.3,2431.2,0.01199862]
[1728480645543,15.5468714,2431.3,2431.2,0.00799862]
[1728480645740,4.11353,2431.0,2430.9,0.008]
[1728480645945,8.7013057,2431.0,2430.9,0.008]
[1728480646259,8.7173057,2431.0,2430.9,0.008]
[1728480646567,8.7213057,2431.0,2430.9,0.008]
[1728480648050,4.13753,2431.0,2430.9,0.008]
[1728480648277,7.9362057,2431.0,2430.9,0.008]
[1728480648487,0.024,2431.0,2430.9,0.008]
[1728480649017,0.024,2431.0,2430.9,1.10835886]
[1728480649456,0.024,2431.0,2430.9,5.22205886]
[1728480649662,0.024,2431.0,2430.9,1.11235886]
[1728480650186,0.024,2431.0,2430.9,5.23005886]
[1728480651546,0.024,2431.0,2430.9,6.12852521]
[1728480651801,0.024,2431.0,2430.9,9.12852521]
[1728480652079,0.024,2431.0,2430.9,9.04625886]
[1728480654518,0.024,2431.0,2430.9,0.8322]
[1728480655782,0.024,2431.0,2430.9,1.3822]
[1728480657340,0.024,2431.0,2430.9,0.016]
[1728480658121,4.13753,2431.0,2430.9,0.016]
[1728480658528,0.024,2431.0,2430.9,0.016]
[1728480658884,4.13753,2431.0,2430.9,0.016]
[1728480660541,8.8370127,2431.0,2430.9,0.016]
[1728480660687,9.5933127,2431.0,2430.9,0.016]
[1728480661631,5.794637,2431.0,2430.9,0.016]
[1728480661931,0.024,2431.0,2430.9,0.566]
[1728480662090,0.024,2431.0,2430.9,0.016]